[Event "FRA-ch Teams Top 16-B 2022"]
[Site "Chartres"]
[Date "2022.06.13"]
[Round "5.30"]
[White "Libiszewski, Fabien"]
[Black "De Pierrefeu, Thibaut"]
[Result "1/2-1/2"]
[ECO "C77"]
[WhiteElo "2514"]
[BlackElo "2181"]
[Annotator "TA"]
[PlyCount "143"]
[EventDate "2022.06.09"]
[EventType "team-tourn"]
[EventCountry "FRA"]
[SourceTitle "playchess.com"]
[Source "ChessBase"]
[SourceQuality "1"]
[TimeControl "40/5400+30:1800+30"]

{[%evp 11,143,9,3,0,50,57,45,48,45,51,65,41,47,47,47,42,39,42,43,49,44,45,47,47,60,65,71,69,67,67,70,38,37,37,35,20,49,49,49,49,62,62,70,72,58,58,78,33,33,33,33,29,29,29,29,29,29,29,29,29,29,29,29,29,29,29,67,67,67,45,56,0,67,0,47,48,47,47,48,48,67,60,60,52,52,28,28,29,48,48,48,48,48,48,48,48,57,57,63,29,29,29,29,0,5,0,63,63,63,63,63,57,57,57,57,57,57,50,50,50,128,128,128,128,128,128,128,128,128,128,128,128,128,128]} 1. e4 {[%emt 0:00:03]} e5 {[%emt 0:00:10]} 2. Nf3 {[%emt 0:00:12]} Nc6 {[%emt 0:00:06]} 3. Bb5 {[%emt 0:00:11]} a6 {[%emt 0:00:20]} 4. Ba4 {[%emt 0:00:14]} Nf6 {[%emt 0:00:25]} 5. Nc3 {[%emt 0:00:36]} b5 {[%emt 0:04:01]} 6. Bb3 {[%emt 0:00:20]} Be7 {[%emt 0:01:06]} 7. a4 $1 {[%emt 0:01:05][%mdl 4] is recently more successful than 7.d3. C77: Ruy Lopez: 3...a6 4 Ba4 Nf6, unusual lines.} Nd4 {[%emt 0:04:44]} ({Black should play} 7... b4 $11 8. Nd5 d6) 8. axb5 $14 {[%emt 0:39:27]} ({Much weaker is} 8. Nxe5 Nxb3 9. cxb3 b4 $11) 8... Nxb3 {[%emt 0:00:25]} 9. cxb3 {[%emt 0:00:04] [#] White is slightly better.} d5 $146 {[%emt 0:15:18]} ({Predecessor:} 9... d6 10. d4 Nd7 11. O-O Bb7 12. bxa6 Bxa6 13. Re1 c6 14. Be3 O-O 15. Qc2 f6 {1-0 (26) Shevchenko,K (2592)-Schitco,I (2467) Tornelo INT 2020}) 10. Nxe5 {[%emt 0:06:12] And now Nc6 would win.} dxe4 {[%emt 0:04:02]} 11. Qe2 {[%emt 0:02:27][%csl LRa6,LRe4]} Qd6 {[%emt 0:07:05]} 12. Nc6 {[%emt 0:04:27]} Qd3 {[%emt 0:18:42]} 13. Qxd3 {[%emt 0:27:21]} exd3 {[%emt 0:00:42]} 14. O-O {[%emt 0:00:09] Hoping for Re1.} Bd6 {[%emt 0:05:03]} 15. Re1+ {[%emt 0:02:51]} Kd7 {[%emt 0:00:48]} 16. Ne5+ {[%emt 0:01:03]} Bxe5 {[%emt 0:00:11]} 17. Rxe5 {[%emt 0:00:01]} Re8 {[%emt 0:06:37]} 18. Rxe8 {[%emt 0:01:47]} Kxe8 {[%emt 0:00:57]} 19. f3 {[%emt 0:02:08]} Bb7 {[%emt 0:01:54]} 20. bxa6 {[%emt 0:04:18]} Rxa6 {[%emt 0:03:09]} 21. Ra4 {[%emt 0:00:50]} Kd7 {[%emt 0:10:59]} 22. Kf2 {[%emt 0:00:37]} c5 {[%emt 0:06:37]} 23. b4 {[%emt 0:02:27][%cal Bb3b4,Bb4b5][%mdl 32]} c4 {[%emt 0:02:34]} 24. Rxa6 {[%emt 0:00:25]} Bxa6 {[%emt 0:00:01][%mdl 4096] Endgame KBN-KBN} 25. b5 {[%emt 0:00:52]} Bc8 {[%emt 0:03:24]} 26. Ke3 {[%emt 0:00:35]} Kc7 {[%emt 0:00:40]} 27. Kd4 {[%emt 0:02:29]} Be6 {[%emt 0:00:04]} 28. Na4 {[%emt 0:00:16]} Nd7 {[%emt 0:02:50]} 29. Nc5 {[%emt 0:00:54]} Nxc5 {[%emt 0:00:18]} 30. Kxc5 {[%emt 0:00:01] KB-KB} h5 {[%emt 0:00:42]} 31. h4 {[%emt 0:00:34]} Kb7 {[%emt 0:00:16]} 32. b3 {[%emt 0:00:41]} cxb3 {[%emt 0:00:11]} 33. Bb2 {[%emt 0:00:01]} g6 {[%emt 0:00:24]} 34. Kb4 {[%emt 0:00:01]} Bd7 {[%emt 0:00:47]} 35. Bd4 {[%emt 0:00:20]} Be6 {[%emt 0:01:18]} 36. Kc3 {[%emt 0:00:21]} Kc7 {[%emt 0:01:03]} 37. Kxd3 {[%emt 0:00:42]} Kd6 {[%emt 0:00:30]} 38. Kc3 {[%emt 0:01:41]} Bd5 {[%emt 0:00:25]} 39. Kb4 {[%emt 0:00:15]} Be6 {[%emt 0:00:32]} 40. Bf6 {[%emt 0:00:52]} Bd5 {[%emt 0:00:37]} 41. Bd4 {[%emt 0:04:50]} Be6 $1 {[%emt 0:01:07]} 42. Kc3 {[%emt 0:00:45]} ({White should try} 42. Bb2 $14) 42... Bd7 {[%emt 0:00:49]} (42... Bd5 $11) 43. Kc4 {[%emt 0:02:28]} Be6+ {[%emt 0:00:23]} 44. Kb4 $1 {[%emt 0:00:11]} Kd5 {[%emt 0:03:07]} 45. Bb2 {[%emt 0:02:37]} Kd6 {[%emt 0:00:12]} 46. Ba3 {[%emt 0:00:05]} Bd5 {[%emt 0:01:20]} 47. Ka5+ {[%emt 0:01:35]} Kc7 {[%emt 0:00:39][%cal Og6g5]} 48. d3 {[%emt 0:00:15]} Kb7 {[%emt 0:00:24]} 49. Kb4 {[%emt 0:00:11]} Kb6 {[%emt 0:00:18]} 50. Bb2 {[%emt 0:00:06]} Be6 $1 {[%emt 0:00:26]} 51. Bd4+ {[%emt 0:08:22]} Kb7 {[%emt 0:01:09]} 52. Bc3 {[%emt 0:02:26]} Kb6 {[%emt 0:02:01]} 53. Bb2 {[%emt 0:00:04]} Bf5 {[%emt 0:03:51]} 54. Bd4+ {[%emt 0:04:08]} Kb7 {[%emt 0:00:14]} 55. Kc4 {[%emt 0:00:21]} Be6+ {[%emt 0:22:03]} 56. Kc3 {[%emt 0:00:18]} Bd7 {[%emt 0:00:00]} 57. Kc4 {[%emt 0:06:20]} Be6+ $1 {[%emt 0:00:00]} 58. Kb4 {[%emt 0:00:10]} (58. Kc5 $11) 58... Bf5 $1 {[%emt 0:00:00]} 59. Kxb3 {[%emt 0:00:03]} Bxd3 {[%emt 0:00:00]} 60. Kb4 {[%emt 0:00:04]} Bf1 {[%emt 0:00:00]} 61. g3 {[%emt 0:00:04]} Be2 {[%emt 0:00:00]} 62. f4 {[%emt 0:00:03]} Bg4 {[%emt 0:00:00]} 63. Kc5 {[%emt 0:00:03]} Bd7 {[%emt 0:00:00]} 64. b6 {[%emt 0:07:11]} Bg4 {[%emt 0:00:00]} 65. Kd6 {[%emt 0:00:30]} f5 {[%emt 0:00:00]} ({Better is} 65... Bc8 $14) 66. Ke6 $16 {[%emt 0:00:00] White is better.} Kc6 {[%emt 0:00:00]} 67. Kf6 {[%emt 0:00:00]} Kb7 {[%emt 0:00:00]} 68. Kxg6 {[%emt 0:00:00]} Kc6 {[%emt 0:00:00]} 69. Kf6 {[%emt 0:00:00]} Kb7 {[%emt 0:00:00]} 70. Ke7 {[%emt 0:00:00]} Bf3 {[%emt 0:07:30]} 71. Ke6 {[%emt 0:00:00]} Bg4 {[%emt 0:00:00]} 72. Bf2 {[%emt 0:00:00] Weighted Error Value: White=0.07 (flawless) /Black=0.06 (flawless)} 1/2-1/2

[Event "FRA-ch Teams Top 16-B 2022"]
[Site "Chartres"]
[Date "2022.06.13"]
[Round "5.31"]
[White "Le Pen, Steven"]
[Black "Harutyunyan, Ruben"]
[Result "0-1"]
[ECO "C68"]
[WhiteElo "2090"]
[BlackElo "2381"]
[Annotator "TA"]
[PlyCount "68"]
[EventDate "2022.06.09"]
[EventType "team-tourn"]
[EventCountry "FRA"]
[SourceTitle "playchess.com"]
[Source "ChessBase"]
[SourceQuality "1"]
[TimeControl "40/5400+30:1800+30"]

{[%evp 19,68,41,76,38,75,6,26,0,10,0,0,0,0,0,0,0,0,0,34,-40,-40,-34,-39,-35,-32,-32,-45,-43,-56,-57,-22,-23,-14,-28,-28,-28,-20,-57,-70,-686,-700,-529,-435,-29990,-29991,-29991,-29992,-29994,-29995,-29995,-999]} 1. e4 {[%emt 0:00:03]} e5 {[%emt 0:00:03]} 2. Nf3 {[%emt 0:00:12]} Nc6 {[%emt 0:00:03]} 3. Bb5 {[%emt 0:00:20]} a6 {[%emt 0:00:16]} 4. Bxc6 {[%emt 0:03:14]} dxc6 {[%emt 0:00:04]} 5. O-O {[%emt 0:00:18]} Bg4 {[%emt 0:03:40]} 6. h3 {[%emt 0:00:19]} Bh5 {[%emt 0:00:02]} 7. g4 {[%emt 0:12:36]} Bg6 {[%emt 0:00:04]} 8. Nxe5 {[%emt 0:00:20]} Qh4 {[%emt 0:00:03]} 9. Qf3 {[%emt 0:02:51]} Bd6 {[%emt 0:08:13]} 10. Nxg6 {[%emt 0:08:29]} hxg6 {[%emt 0:00:11]} 11. Kg2 {[%emt 0:01:58][%cal Oe4e5] C68: Ruy Lopez: Exchange Variation, sidelines.} (11. e5 $5 {[%cal Re5d6]} Bc5 12. c3 $14) 11... Bf4 {[%emt 0:02:00][%cal Og8e7] [#]} 12. Nc3 {[%emt 0:03:58]} (12. d3 $1 $16 Bxc1 13. Rxc1) 12... Ne7 {[%emt 0:03:40]} 13. Ne2 {[%emt 0:07:42] White has an edge.} (13. Rh1 $5 {[%cal Rf3f4]} g5 14. d4 $14) 13... g5 {[%emt 0:00:12]} 14. d4 {[%emt 0:06:11]} Ng6 {[%emt 0:00:21]} 15. Bxf4 {[%emt 0:04:18]} gxf4 {[%emt 0:00:05]} 16. Rh1 {[%emt 0:02:14]} Qg5 {[%emt 0:03:27] ...Nh4+ is the strong threat.} 17. Kf1 {[%emt 0:05:25]} O-O-O {[%emt 0:01:26][%cal Ba8d8,Bd8d6,Bd6f6][%mdl 32]} 18. Rd1 {[%emt 0:01:55] [#]} Rd6 $146 {[%emt 0:03:38]} ({Predecessor:} 18... c5 19. c3 Rd6 20. Rc1 Rf6 21. e5 Re6 22. Re1 Rb6 23. b3 cxd4 24. cxd4 Rc6 {1-0 (41) Slingerland,F (2415)-Hajdarevic,S (2143) Sarajevo 2011}) 19. h4 {[%emt 0:08:00]} (19. Qc3 $14) 19... Rxh4 $15 {[%emt 0:16:25]} 20. Rxh4 {[%emt 0:00:28]} Qxh4 {[%emt 0:02:06]} 21. Nxf4 {[%emt 0:13:22]} Nxf4 {[%emt 0:00:20]} 22. Qxf4 {[%emt 0:00:07][%mdl 4096] Endgame KQR-KQR} Rf6 {[%emt 0:00:07][%mdl 64] [#] Deflection} 23. Qe3 {[%emt 0:00:29]} Qxg4 {[%emt 0:00:09]} 24. Rd3 {[%emt 0:01:46]} Rf4 {[%emt 0:05:23]} ({Don't play} 24... Rg6 25. Qh3 $11) 25. f3 {[%emt 0:00:13]} Qh3+ {[%emt 0:08:11]} 26. Ke2 {[%emt 0:00:56]} Qh2+ {[%emt 0:03:31]} 27. Qf2 {[%emt 0:01:34]} Qh5 {[%emt 0:00:05] And now ...Rxe4+ would win.} 28. Qe3 {[%emt 0:07:39]} Rh4 {[%emt 0:00:07]} 29. Rb3 $2 {[%emt 0:01:10][%mdl 8192] Loses the game.} (29. a3 $15) 29... Rh2+ $19 {[%emt 0:02:12]} ({Weaker is} 29... Rh1 30. Kd3 $17) 30. Kd3 {[%emt 0:01:48]} Qh3 {[%emt 0:01:05]} 31. c4 {[%emt 0:01:52]} (31. Qe1 $19 Qxf3+ 32. Kc4 Rxc2+ 33. Kb4) 31... Qg2 {[%emt 0:01:47][%csl Gh2][%cal Rg2c2] Black mates.} 32. Kc3 {[%emt 0:02:28]} a5 {[%emt 0:00:04][%csl Gh2][%cal Rg2c2]} 33. d5 {[%emt 0:00:57]} c5 {[%emt 0:00:27][%csl Gh2][%cal Rg2c2]} 34. Qd3 {[%emt 0:01:00]} Rh3 {[%emt 0:38:03] Weighted Error Value: White=0.71/Black=0.06 (flawless)} (34... Qf2 $142 35. Rb5 a4 36. Qd1 Qe3+ 37. Qd3 Qe1+ 38. Qd2 Qxd2#) 0-1

[Event "FRA-ch Teams Top 16-B 2022"]
[Site "Chartres"]
[Date "2022.06.13"]
[Round "5.32"]
[White "Benmesbah, Natacha"]
[Black "Ruhlmann, Helene"]
[Result "1-0"]
[ECO "B40"]
[WhiteElo "2251"]
[BlackElo "1779"]
[Annotator "NA RC"]
[PlyCount "21"]
[EventDate "2022.06.09"]
[EventType "team-tourn"]
[EventCountry "FRA"]
[SourceTitle "playchess.com"]
[Source "ChessBase"]
[SourceQuality "1"]
[TimeControl "40/5400+30:1800+30"]

1. e4 {[%emt 0:00:02]} c5 {[%emt 0:00:05]} 2. Nf3 {[%emt 0:00:21]} e6 {[%emt 0:00:17]} 3. b3 {[%emt 0:00:28]} b6 {[%emt 0:00:34]} 4. Bd3 {[%emt 0:01:21]} Nc6 {[%emt 0:01:29]} 5. O-O {[%emt 0:01:34]} Nb4 {[%emt 0:02:43]} 6. Bc4 {[%emt 0:06:14]} d5 {[%emt 0:01:02]} 7. exd5 {[%emt 0:01:19]} exd5 {[%emt 0:00:14]} 8. Bb5+ {[%emt 0:05:53]} Bd7 {[%emt 0:00:10]} 9. Qe2+ {[%emt 0:02:06]} Be7 {[%emt 0:01:19]} 10. Ne5 {[%emt 0:03:09]} Bxb5 {[%emt 0:06:04]} 11. Qxb5+ {[%emt 0:00:29]} 1-0

[Event "FRA-ch Teams Top 16-B 2022"]
[Site "Chartres"]
[Date "2022.06.14"]
[Round "6.1"]
[White "Vachier-Lagrave, Maxime"]
[Black "Gharamian, Tigran"]
[Result "1/2-1/2"]
[ECO "B12"]
[WhiteElo "2750"]
[BlackElo "2602"]
[Annotator "TA"]
[PlyCount "65"]
[EventDate "2022.06.09"]
[EventType "team-tourn"]
[EventCountry "FRA"]
[SourceTitle "playchess.com"]
[Source "ChessBase"]
[SourceQuality "1"]
[TimeControl "40/5400+30:1800+30"]

{[%evp 13,65,26,29,27,36,44,31,38,37,33,35,24,38,-20,-20,-14,-16,-42,-43,-52,-35,-41,-35,-39,-17,-36,-35,-49,-49,-100,-94,-116,-100,-121,-123,-119,-114,-118,-118,-123,-103,-103,-70,-66,-67,-67,-62,-45,0,-7,0,-30,-28,-90]} 1. e4 {[%emt 0:00:04]} c6 {[%emt 0:00:08]} 2. d4 {[%emt 0:00:04]} d5 {[%emt 0:00:06]} 3. e5 {[%emt 0:00:03]} Bf5 {[%emt 0:00:17]} 4. Nf3 {[%emt 0:00:05]} e6 {[%emt 0:00:07]} 5. Be2 {[%emt 0:00:04]} Ne7 {[%emt 0:00:11]} 6. O-O {[%emt 0:00:07]} c5 {[%emt 0:00:34]} 7. c4 {[%emt 0:00:04]} Nbc6 {[%emt 0:01:02]} 8. dxc5 {[%emt 0:00:06] B12: Caro-Kann: Advance Variation.} dxc4 {[%emt 0:02:07]} 9. Bxc4 {[%emt 0:01:31]} Ng6 {[%emt 0:04:16][%csl LRc5,LRe5]} 10. Be3 {[%emt 0:00:53] White is slightly better.} Be7 {[%emt 0:00:18]} 11. Nc3 {[%emt 0:00:09]} O-O {[%emt 0:00:30]} 12. Be2 {[%emt 0:00:37] [#]} Qa5 $5 $146 {[%emt 0:01:30][%mdl 8] New and interesting.} ({Predecessor:} 12... Qb8 13. Nd2 Rd8 14. f4 Nb4 15. Rc1 b6 16. c6 Nxc6 17. Bf3 Qb7 18. Nb5 Rac8 {1-0 (42) Harikrishna,P (2729)-Mamedyarov,S (2817) Kolkata 2018}) 13. a3 {[%emt 0:27:09]} ({White should play} 13. Nb5 $1 $14) 13... Rad8 $11 {[%emt 0:33:17][%mdl 1024] Black has compensation.} 14. Qe1 {[%emt 0:00:46]} a6 {[%emt 0:00:11] Inhibits Nb5.} 15. h3 {[%emt 0:14:41]} Qc7 {[%emt 0:03:52]} 16. g4 {[%emt 0:00:06]} Bd3 {[%emt 0:02:10]} 17. Bxd3 $1 {[%emt 0:00:59]} Rxd3 {[%emt 0:00:06]} 18. Qe2 $1 {[%emt 0:00:05]} Rdd8 {[%emt 0:02:24][%cal Bd3d8,Bd8c8,Bc8b8,Bb8b3][%mdl 32]} (18... Ngxe5 $2 19. Nxe5 Rxe3 20. Qxe3 $18) 19. Rad1 {[%emt 0:05:45][%cal Od1d6]} Ncxe5 {[%emt 0:06:38]} 20. Nxe5 {[%emt 0:00:27]} Qxe5 {[%emt 0:00:18]} 21. Qc4 {[%emt 0:09:19] [#]} ({White should try} 21. Rxd8 $15 Rxd8 22. Qc4) 21... Rc8 $1 $17 {[%emt 0:13:53][%cal Oe7d6]} 22. Qe4 {[%emt 0:06:49]} Bxc5 {[%emt 0:02:53]} 23. Bxc5 {[%emt 0:00:05]} Qxc5 {[%emt 0:01:43]} 24. Qxb7 {[%emt 0:00:18]} Rb8 {[%emt 0:02:01]} 25. Qf3 {[%emt 0:05:30]} Rb3 {[%emt 0:04:23]} ({Don't take} 25... Rxb2 26. Na4 Qe5 27. Nxb2 Qxb2 28. Rb1 $16) 26. Rfe1 {[%emt 0:02:18]} Qb6 {[%emt 0:04:56]} (26... Rxb2 27. Na4 Qc2 28. Nxb2 Qxb2 29. Rb1 $16) 27. Re3 {[%emt 0:01:21]} Qb8 {[%emt 0:01:17]} ({Don't play} 27... Rxb2 28. Na4 Qb8 29. Nxb2 Qxb2 30. Rb3 $16) 28. Na4 {[%emt 0:02:40]} Rxe3 {[%emt 0:00:42]} 29. Qxe3 {[%emt 0:00:22]} Qb5 {[%emt 0:00:04]} 30. b3 {[%emt 0:02:53]} Ne7 {[%emt 0:08:09]} 31. Nb6 {[%emt 0:05:40]} h6 {[%emt 0:01:29]} 32. b4 {[%emt 0:03:49]} a5 {[%emt 0:03:30]} 33. bxa5 {[%emt 0:04:07] Weighted Error Value: White=0.10 (very precise) /Black=0.06 (flawless)} (33. Qd4 $11) 1/2-1/2

[Event "FRA-ch Teams Top 16-B 2022"]
[Site "Chartres"]
[Date "2022.06.14"]
[Round "6.2"]
[White "Van Foreest, Jorden"]
[Black "Moussard, Jules"]
[Result "0-1"]
[ECO "B92"]
[WhiteElo "2715"]
[BlackElo "2651"]
[Annotator "TA"]
[PlyCount "104"]
[EventDate "2022.06.09"]
[EventType "team-tourn"]
[EventCountry "FRA"]
[SourceTitle "playchess.com"]
[Source "ChessBase"]
[SourceQuality "1"]
[TimeControl "40/5400+30:1800+30"]

{[%evp 17,104,4,4,8,13,6,18,16,11,0,25,15,28,0,25,31,41,30,42,41,56,16,42,21,51,50,46,0,0,0,0,0,0,-79,0,0,36,24,63,-70,-71,-90,-97,-90,-90,-90,-90,-90,-90,-90,-90,-170,-116,-116,-118,-119,-123,-198,-204,-203,-96,-205,-206,-204,-193,-185,-214,-189,-199,-237,-233,-222,-233,-220,-218,-1131,-1107,-958,-856,-962,-640,-955,-950,-877,-850,-29980,-29980,-29980,-653]} 1. e4 {[%emt 1:31:00]} c5 {[%emt 0:00:42]} 2. Nf3 {[%emt 0:00:00]} d6 {[%emt 0:00:06]} 3. d4 {[%emt 0:00:00]} cxd4 {[%emt 0:00:07]} 4. Nxd4 {[%emt 0:00:00]} Nf6 {[%emt 0:00:05]} 5. Nc3 {[%emt 0:00:00]} a6 {[%emt 0:00:06]} 6. Be2 {[%emt 0:00:00]} e5 {[%emt 0:00:25]} 7. Nb3 {[%emt 0:00:00]} Be7 {[%emt 0:00:07]} 8. O-O {[%emt 0:00:00]} O-O {[%emt 0:00:52]} 9. Qd3 {[%emt 0:00:00]} Be6 {[%emt 0:01:17]} 10. Rd1 {[%emt 0:00:00] B92: Sicilian Najdorf: 6 Be2.} Nbd7 {[%emt 0:09:54]} 11. Nd5 {[%emt 0:00:00]} Bxd5 {[%emt 0:00:56]} 12. exd5 {[%emt 0:00:00] The position is equal.} Rc8 {[%emt 0:00:17] [#]} 13. a4 $146 {[%emt 0:00:00]} ({Predecessor:} 13. c4 Ne8 14. Bd2 b6 15. Bg4 g6 16. Bxd7 Qxd7 17. Be3 Qd8 18. Nd2 a5 19. a3 {½-½ (55) Grinberg,E (2492)-Beukes,D (2138) Dulles 2022}) 13... Ne8 {[%emt 0:13:55]} 14. a5 {[%emt 0:00:00]} Bg5 {[%emt 0:05:38]} 15. c4 {[%emt 0:00:00]} Bxc1 {[%emt 0:04:08]} 16. Nxc1 {[%emt 0:00:00]} Nef6 {[%emt 0:01:31]} 17. b4 {[%emt 0:00:00]} e4 {[%emt 0:04:47]} 18. Qd4 {[%emt 0:00:00]} Re8 {[%emt 0:10:45]} 19. Ra3 {[%emt 0:00:00]} h5 {[%emt 0:01:03]} 20. h3 {[%emt 0:00:00]} Re5 {[%emt 0:00:50]} 21. Re3 {[%emt 0:00:00]} Nf8 {[%emt 0:04:51][%cal Bd7f8,Bf8g6,Bg6h4][%mdl 32]} 22. Na2 {[%emt 0:00:00]} (22. Bf1 $14) 22... Ng6 $11 {[%emt 0:00:53]} 23. Nc3 {[%emt 0:00:00][%cal Rc3e4]} Nh4 {[%emt 0:02:47]} 24. g4 $1 {[%emt 0:00:00] Prevents Nf5.} (24. Nxe4 $2 Nf5 25. Nxf6+ Qxf6 $19) 24... hxg4 {[%emt 0:00:30] And now ...Nf5 would win.} 25. hxg4 {[%emt 0:00:00]} (25. Nxe4 $11 Rxe4 26. Rxe4) 25... Qe7 {[%emt 0:03:50]} ({Black should try} 25... Nf3+ $1 $17 26. Bxf3 exf3 27. Rxf3 Nxg4) 26. c5 {[%emt 0:00:00]} dxc5 {[%emt 0:01:57]} (26... Re8 $5 {[%cal Rh4g6]}) 27. bxc5 {[%emt 0:00:00]} Ng6 {[%emt 0:00:24]} 28. c6 {[%emt 0:00:00]} (28. d6 $14 Qe6 29. Kf1) 28... bxc6 $15 {[%emt 0:02:26]} 29. dxc6 {[%emt 0:00:00]} Rxc6 {[%emt 0:02:43]} 30. Qd8+ {[%emt 0:00:00]} Qf8 $1 {[%emt 0:01:58]} 31. Qxf8+ {[%emt 0:00:00]} Kxf8 {[%emt 0:02:29]} 32. Rd8+ {[%emt 0:00:00]} Ke7 {[%emt 0:00:30]} 33. Ra8 {[%emt 0:00:00]} Nf4 $36 {[%emt 0:08:56][%cal Oc6c3][%mdl 2048] ...Rxc3! is the strong threat. Black is in control.} ({Reject} 33... Rxa5 $6 34. Ra7+ Kd6 35. Rxf7 $11 (35. Nxe4+ Nxe4 36. Rxe4 Ra1+ 37. Kh2 Rcc1 $11)) 34. Bf3 {[%emt 0:00:00] [#]} (34. Ra7+ $17 Ke6 35. Bd1) 34... Rxa5 {[%emt 0:03:37]} (34... Nh3+ $1 $19 35. Kf1 Ng5) 35. Nxe4 $17 {[%emt 0:00:00]} Ra1+ {[%emt 0:05:51]} 36. Kh2 {[%emt 0:00:00] Threatens to win with Nxf6+.} N6d5 {[%emt 0:01:18] ( -> ...Rh6+). Black is more active.} 37. Nd2+ {[%emt 0:00:00]} (37. Nc5+ $17 Nxe3 38. Bxc6 Nf1+ 39. Kh1) 37... Nxe3 $19 {[%emt 0:01:44] The board is on fire. Pair of Knights!} 38. Bxc6 {[%emt 0:00:00]} Nxg4+ {[%emt 0:02:01]} 39. Kg3 {[%emt 0:00:00]} Ne5 {[%emt 0:00:15]} 40. Ra7+ {[%emt 0:03:15]} Ke6 {[%emt 0:01:48]} 41. Bb7 {[%emt 0:36:08] Strongly threatening Bc8+.} Ne2+ {[%emt 0:31:56]} 42. Kh2 {[%emt 0:02:21]} a5 {[%emt 0:00:00]} 43. Nb3 {[%emt 0:00:00] [#]} Rf1 {[%emt 0:00:00]} 44. Kg2 {[%emt 0:00:00]} Rg1+ {[%emt 0:00:00]} 45. Kh3 {[%emt 0:00:00]} Nd3 {[%emt 0:00:00]} ({Worse is} 45... Nf4+ 46. Kh2 Rf1 47. Rxa5) 46. Rxa5 $2 {[%emt 0:00:00]} (46. Bf3 Nxf2+ 47. Kh2 Ng4+ 48. Bxg4+ Rxg4 49. Ra6+ Ke7 50. Ra7+ Kd6 51. Ra6+ Ke7 52. Ra7+ Kf6 53. Rxa5) 46... Nxf2+ {[%emt 0:00:00]} 47. Kh2 {[%emt 0:00:00]} Ng4+ {[%emt 0:00:00]} 48. Kh3 {[%emt 0:00:00]} Nf4+ {[%emt 0:00:00]} ({And not} 48... Rg3+ 49. Kh4 $11) 49. Kh4 {[%emt 0:00:00]} Ne5 {[%emt 0:00:00][%csl Gg1][%cal Rg7g5]} 50. Nd4+ {[%emt 0:00:00]} Kd6 {[%emt 0:00:00][%csl Gg1][%cal Rg7g5]} 51. Nf5+ {[%emt 0:00:00]} Kc7 {[%emt 0:00:00][%csl Gg1][%cal Rg7g5]} 52. Ng3 {[%emt 0:00:00]} Nfg6+ {[%emt 0:00:00] Weighted Error Value: White=0.43/Black=0.09 (flawless)} (52... Kxb7 $142 53. Rxe5 Ng6+ 54. Kh3 Nxe5 55. Ne2 Rg4 56. Nc3 Kc6 57. Nb1 f5 58. Nd2 f4 59. Kh2 f3 60. Kh1 f2 61. Kh2 g5 62. Nf1 Rg1 63. Kh3 Nf3 64. Ng3 f1=Q+ 65. Kg4 Ne5+ 66. Kh5 Qf6 67. Ne4 Qh8#) 0-1

[Event "FRA-ch Teams Top 16-B 2022"]
[Site "Chartres"]
[Date "2022.06.14"]
[Round "6.3"]
[White "Alekseenko, Kirill"]
[Black "Vocaturo, Daniele"]
[Result "1/2-1/2"]
[ECO "C43"]
[WhiteElo "2698"]
[BlackElo "2608"]
[Annotator "TA"]
[PlyCount "35"]
[EventDate "2022.06.09"]
[EventType "team-tourn"]
[EventCountry "FRA"]
[SourceTitle "playchess.com"]
[Source "ChessBase"]
[SourceQuality "1"]
[TimeControl "40/5400+30:1800+30"]

{[%evp 9,35,0,4,0,0,0,12,0,0,0,0,0,-4,-2,13,7,0,0,0,0,0,0,-4,0,0,0,-5,-8]} 1. e4 {[%emt 0:00:03]} e5 {[%emt 0:02:54]} 2. Nf3 {[%emt 0:00:11]} Nf6 {[%emt 0:00:32]} 3. d4 {[%emt 0:01:12]} Nxe4 {[%emt 0:01:03]} 4. Bd3 {[%emt 0:00:34]} Nc6 {[%emt 0:01:28]} 5. dxe5 {[%emt 0:33:22]} Nc5 {[%emt 0:00:39] The position is equal.} 6. O-O {[%emt 0:05:58] C43: Petroff Defence: 3 d4.} Nxd3 {[%emt 0:09:35]} 7. Qxd3 {[%emt 0:00:20]} d6 {[%emt 0:00:08] has lost popularity (7...Be7).} 8. exd6 {[%emt 0:08:09]} Qxd6 {[%emt 0:01:07]} ({Don't take} 8... Be6 9. dxc7 Qxd3 10. cxd3 $14) 9. Qe4+ {[%emt 0:05:17]} Qe7 {[%emt 0:10:17]} 10. Qf4 {[%emt 0:01:30]} Be6 {[%emt 0:00:45]} 11. Rd1 {[%emt 0:02:17] [#]} h6 $146 {[%emt 0:01:07]} ({Predecessor:} 11... Rd8 12. Re1 h6 13. Nc3 g5 14. Qg3 Bg7 15. Ne4 O-O 16. Be3 b6 17. Nexg5 hxg5 18. Bxg5 {0-1 (57) Vocaturo,D (2600)-Vallejo Pons,F (2711) Germany 2017}) 12. Nc3 {[%emt 0:06:54] Strongly threatening Nb5.} g5 {[%emt 0:06:01]} 13. Qa4 {[%emt 0:00:05]} Qb4 {[%emt 0:02:34]} (13... Bg7 {seems wilder.} 14. h4 gxh4 15. Nd5 Bxd5 16. Rxd5 Qb4) 14. Qxb4 {[%emt 0:07:57]} Bxb4 {[%emt 0:00:13]} 15. Nb5 {[%emt 0:01:32]} Rc8 {[%emt 0:03:34]} 16. Be3 {[%emt 0:04:03]} a6 {[%emt 0:06:44]} 17. Nbd4 {[%emt 0:00:07]} Nxd4 {[%emt 0:01:59]} 18. Nxd4 {[%emt 0:01:18] A balanced but interesting game.  Weighted Error Value: White=0.01 (flawless) /Black=0.02 (flawless)} 1/2-1/2